fUST/lending_fUST_20241022
["ID","MTS","AMOUNT","RATE_DAILY","PERIOD"]
[340617933,1729536646806,-631.61,0.00016438,2]
[340617934,1729536646817,-1731.12,0.00016438,2]
[340617935,1729536646827,-500.0,0.00016438,2]
[340617936,1729536646836,-500.0,0.00016438,2]
[340617937,1729536646845,-5702.49,0.00016438,2]
[340617938,1729536646855,-561.95,0.00016438,2]
[340617939,1729536646864,-676.8,0.00016438,2]
[340617940,1729536646873,-695.37,0.00016438,2]
[340617941,1729536646883,-974.68,0.00016438,2]
[340617942,1729536646892,-500.0,0.00016438,2]
[340617943,1729536646902,-151.0,0.00016438,2]
[340617944,1729536646911,-589.52111415,0.00016438,2]
[340617945,1729536646921,-2591.21,0.00016438,2]
[340617946,1729536646930,-570.35,0.00016438,2]
[340617947,1729536646940,-500.0,0.00016438,2]
[340617948,1729536646949,-1782.74,0.00016438,2]
[340617949,1729536646959,-500.0,0.00016438,2]
[340617950,1729536646968,-1591.97,0.00016438,2]
[340617951,1729536646977,-963.24,0.00016438,2]
[340617952,1729536646987,-500.0,0.00016438,2]
[340617953,1729536646996,-500.0,0.00016438,2]
[340617954,1729536647005,-1347.91,0.00016438,2]
[340617955,1729536647015,-151.0,0.00016438,2]
[340617956,1729536647024,-500.0,0.00016438,2]
[340617957,1729536647033,-500.0,0.00016438,2]
[340617958,1729536647042,-2173.14,0.00016438,2]
[340617959,1729536647052,-1359.21,0.00016438,2]
[340617960,1729536647062,-1452.22,0.00016438,2]
[340617961,1729536647071,-500.0,0.00016438,2]
[340617962,1729536647081,-500.0,0.00016438,2]
[340617963,1729536647090,-1118.15,0.00016438,2]
[340617964,1729536647099,-1390.05,0.00016438,2]
[340617965,1729536647108,-500.0,0.00016438,2]
[340617966,1729536647118,-2042.21,0.00016438,2]
[340617967,1729536647127,-200.0,0.00016438,2]
[340617968,1729536647137,-246.17793626,0.00016438,2]
[340617969,1729536647146,-1297.92,0.00016438,2]
[340617970,1729536647156,-500.0,0.00016438,2]
[340617971,1729536647165,-528.80971964,0.00016438,2]
[340617972,1729536647175,-467.69075596,0.00016438,2]
[340617973,1729536647185,-500.0,0.00016438,2]
[340617974,1729536647194,-1318.72,0.00016438,2]
[340617975,1729536647204,-500.0,0.00016438,2]
[340617976,1729536647213,-943.79,0.00016438,2]
[340617977,1729536647223,-500.0,0.00016438,2]
[340617978,1729536647233,-933.33,0.00016438,2]
[340617979,1729536647242,-500.0,0.00016438,2]
[340617980,1729536647252,-516.27906594,0.00016438,2]
[340617981,1729536647261,-663.24,0.00016438,2]
[340617982,1729536647271,-1396.66,0.00016438,2]
[340617983,1729536647280,-1041.71,0.00016438,2]
[340617984,1729536647289,-665.23,0.00016438,2]
[340617985,1729536647299,-500.0,0.00016438,2]
[340617986,1729536647309,-983.93,0.00016438,2]
[340617987,1729536647318,-554.9,0.00016438,2]
[340617988,1729536647328,-1021.36,0.00016438,2]
[340617989,1729536647337,-698.96,0.00016438,2]
[340617990,1729536647347,-915.81,0.00016438,2]
[340617991,1729536647356,-500.0,0.00016438,2]
[340617992,1729536647366,-583.87,0.00016438,2]
[340617993,1729536647376,-500.0,0.00016438,2]
[340617994,1729536647385,-975.71,0.00016438,2]
[340617995,1729536647395,-500.0,0.00016438,2]
[340617996,1729536647404,-637.9,0.00016438,2]
[340617997,1729536647414,-2707.26,0.00016438,2]
[340617998,1729536647424,-536.23078069,0.00016438,2]
[340617999,1729536647433,-598.92,0.00016438,2]
[340618000,1729536647443,-1226.42,0.00016438,2]
[340618001,1729536647452,-578.71219577,0.00016438,2]
[340618002,1729536647461,-1220.71,0.00016438,2]
[340618003,1729536647471,-740.1,0.00016438,2]
[340618004,1729536647480,-500.0,0.00016438,2]
[340618005,1729536647490,-500.0,0.00016438,2]
[340618006,1729536647499,-2412.31,0.00016438,2]
[340618007,1729536647509,-500.0,0.00016438,2]
[340618008,1729536647519,-512.34390598,0.00016438,2]
[340618009,1729536647529,-598.31,0.00016438,2]
[340618010,1729536647538,-560.29,0.00016438,2]
[340618011,1729536647548,-938.03,0.00016438,2]
[340618012,1729536647559,-2370.58,0.00016438,2]
[340618013,1729536647568,-500.0,0.00016438,2]
[340618014,1729536647577,-3058.36,0.00016438,2]
[340618015,1729536647586,-554.83,0.00016438,2]
[340618016,1729536647596,-1090.92,0.00016438,2]
[340618017,1729536647606,-1216.25,0.00016438,2]
[340618018,1729536647616,-772.22,0.00016438,2]
[340618019,1729536647626,-550.3,0.00016438,2]
[340618020,1729536647636,-500.0,0.00016438,2]
[340618021,1729536647646,-1425.68,0.00016438,2]
[340618022,1729536647656,-10619.72,0.00016438,2]
[340618023,1729536647666,-795.82,0.00016438,2]
[340618024,1729536647675,-500.0,0.00016438,2]
[340618025,1729536647685,-1642.1,0.00016438,2]
[340618026,1729536647695,-500.0,0.00016438,2]
[340618027,1729536647704,-1142.38,0.00016438,2]
[340618028,1729536647714,-1963.28,0.00016438,2]
[340618029,1729536647723,-880.67,0.00016438,2]
[340618030,1729536647733,-1020.03,0.00016438,2]
[340618031,1729536647743,-500.0,0.00016438,2]
[340618032,1729536647753,-500.0,0.00016438,2]
[340618033,1729536647763,-648.57,0.00016438,2]
[340618034,1729536647773,-1386.47,0.00016438,2]
[340618035,1729536647782,-563.62,0.00016438,2]
[340618036,1729536647792,-500.0,0.00016438,2]
[340618037,1729536647803,-524.12,0.00016438,2]
[340618038,1729536647815,-3533.88,0.00016438,2]
[340618039,1729536647824,-1311.06,0.00016438,2]
[340618040,1729536647834,-500.0,0.00016438,2]
[340618041,1729536647844,-861.76,0.00016438,2]
[340618042,1729536647854,-500.0,0.00016438,2]
[340618043,1729536647863,-906.89,0.00016438,2]
[340618044,1729536647873,-500.0,0.00016438,2]
[340618045,1729536647884,-1351.99,0.00016438,2]
[340618046,1729536647894,-500.0,0.00016438,2]
[340618047,1729536647904,-1172.98,0.00016438,2]
[340618048,1729536647914,-1489.53,0.00016438,2]
[340618049,1729536647925,-971.41,0.00016438,2]
[340618050,1729536647935,-978.53,0.00016438,2]
[340618051,1729536647945,-997.17,0.00016438,2]
[340618052,1729536647955,-1313.61,0.00016438,2]
[340618053,1729536647965,-766.37,0.00016438,2]
[340618054,1729536647975,-1412.68,0.00016438,2]
[340618055,1729536647985,-1090.98,0.00016438,2]
[340618056,1729536647995,-1743.56,0.00016438,2]
[340618057,1729536648005,-500.0,0.00016438,2]
[340618058,1729536648015,-5520.29,0.00016438,2]
[340618059,1729536648025,-12099.45,0.00016438,2]
[340618060,1729536648034,-1307.7,0.00016438,2]
[340618061,1729536648044,-553.83,0.00016438,2]
[340618062,1729536648054,-916.58,0.00016438,2]
[340618063,1729536648069,-508.5,0.00016438,2]
[340618064,1729536648079,-500.0,0.00016438,2]
[340618065,1729536648088,-500.0,0.00016438,2]
[340618066,1729536648099,-500.0,0.00016438,2]
[340618067,1729536648109,-500.0,0.00016438,2]
[340618068,1729536648119,-1275.97,0.00016438,2]
[340618069,1729536648129,-151.0,0.00016438,2]
[340618070,1729536648139,-637.77422423,0.00016438,2]
[340618071,1729536648149,-151.0,0.00016438,2]
[340618072,1729536648159,-209.302463,0.00016438,2]
[340618073,1729536648170,-151.0,0.00016438,2]
[340618074,1729536648180,-209.302463,0.00016438,2]
[340618075,1729536648190,-500.0,0.00016438,2]
[340618076,1729536648200,-1056.72,0.00016438,2]
[340618077,1729536648210,-500.0,0.00016473,2]
[340618078,1729536648221,-500.0,0.00016473,2]
[340618079,1729536648231,-500.0,0.00016473,2]
[340618080,1729536648241,-500.0,0.00016473,2]
[340618081,1729536648251,-500.96784622,0.00016473,2]
[340618082,1729536648261,-436.76077567,0.00016473,2]
[340618083,1729536648271,-358.48730253,0.00016473,2]
[340618084,1729536648281,-500.0,0.00016473,2]
[340618085,1729536648291,-500.0,0.00016473,2]
[340618086,1729536648301,-500.0,0.00016473,2]
[340618087,1729536648311,-153.0,0.000165,2]
[340618088,1729536648321,-199.76504114,0.00016512,2]
[340618089,1729536648331,-527.0,0.00016612,2]
[340618090,1729536648342,-1154.0,0.00016612,2]
[340618091,1729536648354,-1804.0,0.00016612,2]
[340618092,1729536648364,-245.6491,0.00016628,2]
[340618093,1729536648374,-3672.35865528,0.00016641,2]
[340618094,1729536648384,-3672.35865528,0.0001668,2]
[340618095,1729536648395,-8890.20115101,0.00016687,2]
[340618096,1729536648405,-47629.39405836,0.0001669,2]
[340618097,1729536648415,-151.0,0.0001669,2]
[340618098,1729536648424,-151.0,0.0001669,2]
[340618099,1729536648435,-151.0,0.0001669,2]
[340618100,1729536648445,-151.0,0.0001669,2]
[340618101,1729536648455,-151.0,0.0001669,2]
[340618102,1729536648465,-151.0,0.0001669,2]
[340618103,1729536648475,-151.0,0.0001669,2]
[340618104,1729536648485,-151.0,0.0001669,2]
[340618105,1729536648495,-209.302463,0.0001669,2]
[340618106,1729536648505,-151.0,0.0001669,2]
[340618107,1729536648515,-209.302463,0.0001669,2]
[340618108,1729536648526,-151.0,0.00016692,2]
[340618109,1729536648536,-7344.71731056,0.00016692,2]
[340618110,1729536648546,-151.0,0.00016702,2]
[340618111,1729536648556,-151.0,0.00016702,2]
[340618112,1729536648566,-8106.73041237,0.00016711,2]
[340618113,1729536648576,-500.0,0.00016712,2]
[340618114,1729536648587,-584.72,0.00016712,2]
[340618115,1729536648597,-501.66,0.00016712,2]
[340618116,1729536648607,-799.41,0.00016712,2]
[340618117,1729536648618,-500.0,0.00016712,2]
[340618118,1729536648628,-656.86,0.00016712,2]
[340618119,1729536648638,-970.45,0.00016712,2]
[340618120,1729536648648,-978.45,0.00016712,2]
[340618121,1729536648659,-500.0,0.00016712,2]
[340618122,1729536648669,-649.05,0.00016712,2]
[340618123,1729536648679,-818.32,0.00016712,2]
[340618124,1729536648689,-500.0,0.00016712,2]
[340618125,1729536648700,-602.28,0.00016712,2]
[340618126,1729536648710,-500.0,0.00016712,2]
[340618127,1729536648721,-500.0,0.00016712,2]
[340618128,1729536648731,-637.76,0.00016712,2]
[340618129,1729536648741,-547.49,0.00016712,2]
[340618130,1729536648751,-500.0,0.00016712,2]
[340618131,1729536648761,-500.0,0.00016712,2]
[340618132,1729536648770,-420.05931299,0.00016712,2]
[340618133,1729536648780,-554.61,0.00016712,2]
[340618134,1729536648790,-500.0,0.00016712,2]
[340618135,1729536648800,-500.0,0.00016712,2]
[340618136,1729536648810,-509.52,0.00016712,2]
[340618137,1729536648820,-711.57,0.00016712,2]
[340618138,1729536648830,-1315.67,0.00016712,2]
[340618139,1729536648841,-1739.25,0.00016712,2]
[340618140,1729536648851,-500.0,0.00016712,2]
[340618141,1729536648861,-1040.74,0.00016712,2]
[340618142,1729536648872,-840.64,0.00016712,2]
[340618143,1729536648883,-726.89,0.00016712,2]
[340618144,1729536648893,-575.62,0.00016712,2]
[340618145,1729536648903,-500.0,0.00016712,2]
[340618146,1729536648913,-1022.84,0.00016712,2]
[340618147,1729536648923,-640.67,0.00016712,2]
[340618148,1729536648933,-500.0,0.00016712,2]
[340618149,1729536648943,-500.0,0.00016712,2]
[340618150,1729536648952,-1191.03,0.00016712,2]
[340618151,1729536648961,-500.0,0.00016712,2]
[340618152,1729536648971,-747.99,0.00016712,2]
[340618153,1729536648980,-2054.8,0.00016712,2]
[340618154,1729536648989,-700.91,0.00016712,2]
[340618155,1729536649000,-1836.13,0.00016712,2]
[340618156,1729536649010,-500.0,0.00016712,2]
[340618157,1729536649020,-500.0,0.00016712,2]
[340618158,1729536649031,-386.44047497,0.00016712,2]
[340618159,1729536649041,-500.0,0.00016712,2]
[340618160,1729536649050,-1530.3,0.00016712,2]
[340618161,1729536649061,-857.93,0.00016712,2]
[340618162,1729536649070,-540.6,0.00016712,2]
[340618163,1729536649080,-500.0,0.00016712,2]
[340618164,1729536649090,-500.0,0.00016712,2]
[340618165,1729536649101,-654.19,0.00016712,2]
[340618166,1729536649110,-1380.91,0.00016712,2]
[340618167,1729536649121,-637.97,0.00016712,2]
[340618168,1729536649131,-1931.62,0.00016712,2]
[340618169,1729536649141,-507.38175478,0.00016712,2]
[340618170,1729536649152,-500.0,0.00016712,2]
[340618171,1729536649162,-500.0,0.00016712,2]
[340618172,1729536649172,-1172.96,0.00016712,2]
[340618173,1729536649182,-993.02,0.00016712,2]
[340618174,1729536649192,-500.0,0.00016712,2]
[340618175,1729536649203,-596.02,0.00016712,2]
[340618176,1729536649213,-500.0,0.00016712,2]
[340618177,1729536649223,-696.95,0.00016712,2]
[340618178,1729536649233,-938.5,0.00016712,2]
[340618179,1729536649243,-500.0,0.00016712,2]
[340618180,1729536649253,-1207.75,0.00016712,2]
[340618181,1729536649264,-595.17,0.00016712,2]
[340618182,1729536649274,-1524.47,0.00016712,2]
[340618183,1729536649285,-201.80016875,0.00016712,2]
[340618184,1729536649295,-1691.64,0.00016712,2]
[340618185,1729536649304,-1240.61,0.00016712,2]
[340618186,1729536649314,-1286.09,0.00016712,2]
[340618187,1729536649324,-900.47,0.00016712,2]
[340618188,1729536649335,-555.34,0.00016712,2]
[340618189,1729536649345,-1233.71,0.00016712,2]
[340618190,1729536649355,-650.51,0.00016712,2]
[340618191,1729536649365,-1346.89,0.00016712,2]
[340618192,1729536649375,-1191.85,0.00016712,2]
[340618193,1729536649385,-731.14,0.00016712,2]
[340618195,1729536649394,-759.34,0.00016712,2]
[340618196,1729536649405,-600.12,0.00016712,2]
[340618197,1729536649415,-151.0,0.00016712,2]
[340618198,1729536649425,-151.0,0.00016712,2]
[340618199,1729536649435,-524.52,0.00016712,2]
[340618200,1729536649446,-151.0,0.00016712,2]
[340618201,1729536649456,-500.0,0.00016712,2]
[340618202,1729536649466,-151.0,0.00016712,2]
[340618203,1729536649476,-543.45,0.00016712,2]
[340618204,1729536649488,-151.46398938,0.00016712,2]
[340618205,1729536649499,-1111.04,0.00016712,2]
[340618206,1729536649509,-763.41,0.00016712,2]
[340618207,1729536649519,-500.0,0.00016712,2]
[340618208,1729536649529,-500.0,0.00016712,2]
[340618209,1729536649539,-500.0,0.00016712,2]
[340618210,1729536649550,-1248.59,0.00016712,2]
[340618211,1729536649562,-1336.39,0.00016712,2]
[340618212,1729536649571,-668.45,0.00016712,2]
[340618213,1729536649582,-500.0,0.00016712,2]
[340618214,1729536649591,-500.0,0.00016712,2]
[340618215,1729536649602,-1023.08,0.00016712,2]
[340618216,1729536649613,-2428.73,0.00016712,2]
[340618217,1729536649623,-500.0,0.00016712,2]
[340618218,1729536649633,-508.74,0.00016712,2]
[340618219,1729536649644,-1250.92,0.00016712,2]
[340618220,1729536649654,-1074.33,0.00016712,2]
[340618221,1729536649665,-1623.4,0.00016712,2]
[340618222,1729536649675,-887.63,0.00016712,2]
[340618223,1729536649685,-2172.94,0.00016712,2]
[340618224,1729536649695,-660.42,0.00016712,2]
[340618225,1729536649705,-500.0,0.00016712,2]
[340618226,1729536649715,-574.19,0.00016712,2]
[340618227,1729536649726,-751.13,0.00016712,2]
[340618228,1729536649736,-707.45,0.00016712,2]
[340618229,1729536649747,-875.5,0.00016712,2]
[340618230,1729536649757,-908.82,0.00016712,2]
[340618231,1729536649768,-667.09,0.00016712,2]
[340618232,1729536649779,-1172.39,0.00016712,2]
[340618233,1729536649789,-500.0,0.00016712,2]
[340618234,1729536649800,-500.0,0.00016712,2]
[340618235,1729536649814,-978.17,0.00016712,2]
[340618236,1729536649824,-500.0,0.00016712,2]
[340618237,1729536649835,-781.65,0.00016712,2]
[340618238,1729536649845,-702.55,0.00016712,2]
[340618239,1729536649855,-1932.7,0.00016712,2]
[340618240,1729536649865,-669.36,0.00016712,2]
[340618241,1729536649875,-500.0,0.00016712,2]
[340618242,1729536649887,-500.0,0.00016712,2]
[340618243,1729536649897,-500.0,0.00016712,2]
[340618244,1729536649907,-680.29,0.00016712,2]
[340618245,1729536649918,-563.04,0.00016712,2]
[340618246,1729536649928,-500.0,0.00016712,2]
[340618247,1729536649938,-1039.69,0.00016712,2]
[340618248,1729536649948,-501.66,0.00016712,2]
[340618249,1729536649958,-1564.06,0.00016712,2]
[340618250,1729536649968,-533.75,0.00016712,2]
[340618251,1729536649979,-914.66,0.00016712,2]
[340618252,1729536649989,-1726.32,0.00016712,2]
[340618253,1729536649999,-870.1,0.00016712,2]
[340618254,1729536650008,-500.0,0.00016712,2]
[340618255,1729536650019,-1090.82,0.00016712,2]
[340618256,1729536650029,-151.0,0.00016712,2]
[340618257,1729536650039,-151.0,0.00016712,2]
[340618258,1729536650049,-151.0,0.00016712,2]
[340618259,1729536650060,-792.41,0.00016712,2]
[340618260,1729536650071,-500.0,0.00016712,2]
[340618261,1729536650081,-230.170813,0.00016712,2]
[340618262,1729536650091,-500.0,0.00016712,2]
[340618263,1729536650101,-500.0,0.00016712,2]
[340618264,1729536650111,-500.0,0.00016712,2]
[340618265,1729536650121,-1302.77,0.00016712,2]
[340618266,1729536650131,-770.76,0.00016712,2]
[340618267,1729536650141,-576.71,0.00016712,2]
[340618268,1729536650151,-669.08,0.00016712,2]
[340618269,1729536650161,-977.28,0.00016712,2]
[340618270,1729536650171,-529.64,0.00016712,2]
[340618271,1729536650181,-1261.01,0.00016712,2]
[340618272,1729536650191,-911.39,0.00016712,2]
[340618273,1729536650201,-526.39,0.00016712,2]
[340618274,1729536650448,-696.2,0.00016712,2]
[340618275,1729536650458,-914.05,0.00016712,2]
[340618276,1729536650467,-500.0,0.00016712,2]
[340618277,1729536650477,-500.0,0.00016712,2]
[340618278,1729536650486,-500.0,0.00016712,2]
[340618279,1729536650496,-986.16,0.00016712,2]
[340618280,1729536650506,-500.0,0.00016712,2]
[340618282,1729536650515,-1105.41,0.00016712,2]
[340618283,1729536650525,-500.0,0.00016712,2]
[340618284,1729536650534,-659.43,0.00016712,2]
[340618285,1729536650543,-943.67,0.00016712,2]
[340618286,1729536650553,-627.87,0.00016712,2]
[340618287,1729536650564,-500.0,0.00016712,2]
[340618288,1729536650573,-942.53,0.00016712,2]
[340618289,1729536650582,-500.0,0.00016712,2]
[340618290,1729536650592,-500.0,0.00016712,2]
[340618291,1729536650601,-762.33,0.00016712,2]
[340618292,1729536650610,-928.73,0.00016712,2]
[340618293,1729536650620,-500.0,0.00016712,2]
[340618294,1729536650629,-31477.85,0.00016712,2]
[340618295,1729536650639,-631.61,0.00016712,2]
[340618296,1729536650649,-1731.12,0.00016712,2]
[340618297,1729536650658,-500.0,0.00016712,2]
[340618298,1729536650667,-500.0,0.00016712,2]
[340618299,1729536650676,-5702.49,0.00016712,2]
[340618300,1729536650686,-561.95,0.00016712,2]
[340618301,1729536650696,-676.8,0.00016712,2]
[340618302,1729536650706,-695.37,0.00016712,2]
[340618303,1729536650715,-974.68,0.00016712,2]
[340618304,1729536650725,-500.0,0.00016712,2]
[340618305,1729536650735,-180.07537,0.00016712,2]
[340618306,1729536650744,-2591.21,0.00016712,2]
[340618307,1729536650754,-570.35,0.00016712,2]
[340618308,1729536650763,-500.0,0.00016712,2]
[340618309,1729536650772,-1782.74,0.00016712,2]
[340618310,1729536650782,-327.83017277,0.00016712,2]
[340618311,1729536650791,-1591.97,0.00016712,2]
[340618312,1729536650800,-963.24,0.00016712,2]
[340618313,1729536650810,-500.0,0.00016712,2]
[340618314,1729536650824,-500.0,0.00016712,2]
[340618315,1729536650833,-1347.91,0.00016712,2]
[340618316,1729536650843,-151.0,0.00016712,2]
[340618317,1729536650852,-151.0,0.00016712,2]
[340618318,1729536650862,-151.0,0.00016712,2]
[340618319,1729536650871,-349.46953835,0.00016712,2]
[340618320,1729536650881,-500.0,0.00016712,2]
[340618321,1729536650890,-2173.14,0.00016712,2]
[340618322,1729536650900,-1359.21,0.00016712,2]
[340618323,1729536650911,-1452.22,0.00016712,2]
[340618324,1729536650920,-500.0,0.00016712,2]
[340618325,1729536650930,-500.0,0.00016712,2]
[340618326,1729536650940,-1118.15,0.00016712,2]
[340618327,1729536650949,-1390.05,0.00016712,2]
[340618328,1729536650959,-2042.21,0.00016712,2]
[340618329,1729536650969,-500.0,0.00016712,2]
[340618330,1729536650979,-200.0,0.00016712,2]
[340618331,1729536650988,-1297.92,0.00016712,2]
[340618332,1729536650997,-500.0,0.00016712,2]
[340618333,1729536651007,-1318.72,0.00016712,2]
[340618334,1729536651016,-500.0,0.00016712,2]
[340618335,1729536651026,-500.0,0.00016712,2]
[340618336,1729536651035,-943.79,0.00016712,2]
[340618337,1729536651045,-500.0,0.00016712,2]
[340618338,1729536651054,-933.33,0.00016712,2]
[340618339,1729536651064,-399.23495521,0.00016712,2]
[340618340,1729536651074,-663.24,0.00016712,2]
[340618341,1729536651083,-1396.66,0.00016712,2]
[340618342,1729536651093,-1041.71,0.00016712,2]
[340618343,1729536651102,-665.23,0.00016712,2]
[340618344,1729536651112,-500.0,0.00016712,2]
[340618345,1729536651121,-983.93,0.00016712,2]
[340618346,1729536651130,-554.9,0.00016712,2]
[340618347,1729536651140,-1021.36,0.00016712,2]
[340618348,1729536651150,-698.96,0.00016712,2]
[340618349,1729536651159,-915.81,0.00016712,2]
[340618350,1729536651169,-500.0,0.00016712,2]
[340618351,1729536651179,-583.87,0.00016712,2]
[340618352,1729536651189,-500.0,0.00016712,2]
[340618353,1729536651198,-975.71,0.00016712,2]
[340618354,1729536651208,-500.0,0.00016712,2]
[340618355,1729536651217,-637.9,0.00016712,2]
[340618356,1729536651227,-2707.26,0.00016712,2]
[340618357,1729536651238,-598.92,0.00016712,2]
[340618358,1729536651248,-1226.42,0.00016712,2]
[340618359,1729536651257,-1220.71,0.00016712,2]
[340618360,1729536651267,-740.1,0.00016712,2]
[340618361,1729536651277,-500.0,0.00016712,2]
[340618362,1729536651287,-500.0,0.00016712,2]
[340618363,1729536651296,-2412.31,0.00016712,2]
[340618364,1729536651306,-500.0,0.00016712,2]
[340618365,1729536651316,-598.31,0.00016712,2]
[340618366,1729536651326,-560.29,0.00016712,2]
[340618367,1729536651336,-938.03,0.00016712,2]
[340618368,1729536651346,-2370.58,0.00016712,2]
[340618369,1729536651356,-3058.36,0.00016712,2]
[340618370,1729536651365,-554.83,0.00016712,2]
[340618371,1729536651375,-1090.92,0.00016712,2]
[340618372,1729536651384,-1216.25,0.00016712,2]
[340618373,1729536651394,-772.22,0.00016712,2]
[340618374,1729536651404,-550.3,0.00016712,2]
[340618375,1729536651414,-150.37914431,0.00016712,2]
[340618376,1729536651423,-1425.68,0.00016712,2]
[340618377,1729536651432,-6651.91518411,0.00016712,2]
[340618379,1729536651711,-1356.5099045,0.00016712,2]
[340618380,1729536651723,-2162.53910812,0.00016712,2]
[340618381,1729536651735,-448.75580327,0.00016712,2]
[340618382,1729536651744,-795.82,0.00016712,2]
[340618383,1729536651754,-500.0,0.00016712,2]
[340618384,1729536651763,-391.0954422,0.00016712,2]
[340618385,1729536651783,-616.0,0.00016712,2]
[340618386,1729536651794,-635.0045578,0.00016712,2]
[340618387,1729536651804,-500.0,0.00016712,2]
[340618388,1729536651815,-1142.38,0.00016712,2]
[340618389,1729536651826,-1963.28,0.00016712,2]
[340618390,1729536651836,-880.67,0.00016712,2]
[340618391,1729536651845,-1020.03,0.00016712,2]
[340618392,1729536651855,-500.0,0.00016712,2]
[340618393,1729536651865,-78.0354422,0.00016712,2]
[340618394,1729536651877,-421.9645578,0.00016712,2]
[340618395,1729536651886,-648.57,0.00016712,2]
[340618396,1729536651897,-1386.47,0.00016712,2]
[340618397,1729536651907,-563.62,0.00016712,2]
[340618398,1729536651916,-500.0,0.00016712,2]
[340618399,1729536651926,-524.12,0.00016712,2]
[340618400,1729536651936,-3533.88,0.00016712,2]
[340618401,1729536651945,-277.66819624,0.00016712,2]
[340618405,1729536700304,156.0,0.0001504,2]
[340618406,1729536781031,978.0,0.00022,60]
[340618410,1729537211389,-506.791,0.00027,120]
[340618411,1729537211412,-499.909,0.00027,120]
[340618412,1729537227458,-0.091,0.00027,120]
[340618413,1729537227485,-157.0,0.000278,120]
[340618414,1729537227831,1076.909,0.00029041,120]
[340618415,1729537251458,1234.0,0.00029041,120]
[340618416,1729537263319,1234.0,0.00029041,120]
[340618417,1729537275261,-202.38095514,0.00029041,120]
[340618418,1729537275283,-150.0,0.00029041,120]
[340618419,1729537275307,-150.0,0.00029041,120]
[340618420,1729537275329,-150.0,0.00029041,120]
[340618421,1729537275350,-216.3861713,0.00029041,120]
[340618422,1729537275373,-150.0,0.00029041,120]
[340618423,1729537275394,-150.0,0.00029041,120]
[340618424,1729537275417,-65.23287356,0.00029041,120]
[340618425,1729537296258,-84.76712644,0.00029041,120]
[340618426,1729537296285,-150.0,0.00029041,120]
[340618427,1729537296307,-150.0,0.00029041,120]
[340618428,1729537296331,-150.0,0.00029041,120]
[340618429,1729537296354,-295.82395335,0.00029041,120]
[340618430,1729537296377,-190.0,0.00029041,120]
[340618431,1729537296398,-190.0,0.00029041,120]
[340618432,1729537296420,-190.0,0.00029041,120]
[340618433,1729537296441,-190.0,0.00029041,120]
[340618434,1729537296463,-190.0,0.00029041,120]
[340618435,1729537296484,-190.0,0.00029041,120]
[340618436,1729537296506,-190.0,0.00029041,120]
[340618437,1729537296528,-190.0,0.00029041,120]
[340618438,1729537296550,-190.0,0.00029041,120]
[340618439,1729537296574,-190.0,0.00029041,120]
[340618440,1729537296596,-190.0,0.00029041,120]
[340618441,1729537296617,-192.11064806,0.00029041,120]